[Event "Late-Titled-Tuesday-Blitz-September-19-2023"]
[Site "Chess.com"]
[Date "2023.09.19"]
[Round "2"]
[White "Ready4abattle"]
[Black "Nathan_Filgueiras"]
[Result "1/2-1/2"]
[WhiteElo "2325"]
[BlackElo "2497"]
[TimeControl "180+1"]
[EndTime "14:16:52 PDT"]
[Termination "Game drawn by repetition"]

1. e4 {[%clk 0:03:00.9]} 1... c5 {[%clk 0:02:52.9]} 2. Nf3 {[%clk 0:02:56]} 2...
Nc6 {[%clk 0:02:49.9]} 3. d4 {[%clk 0:02:56.2]} 3... cxd4 {[%clk 0:02:50.8]} 4.
Nxd4 {[%clk 0:02:56.5]} 4... e5 {[%clk 0:02:50.6]} 5. Nb5 {[%clk 0:02:56.8]}
5... d6 {[%clk 0:02:50.8]} 6. N1c3 {[%clk 0:02:56.7]} 6... a6 {[%clk 0:02:51.1]}
7. Bg5 {[%clk 0:02:56.9]} 7... f6 {[%clk 0:02:24.7]} 8. Be3 {[%clk 0:02:56.6]}
8... axb5 {[%clk 0:02:00.7]} 9. Nd5 {[%clk 0:02:56.9]} 9... Ra4 {[%clk
0:01:56.9]} 10. Bxb5 {[%clk 0:02:48.4]} 10... Rxe4 {[%clk 0:01:51.7]} 11. Qf3
{[%clk 0:02:29.1]} 11... f5 {[%clk 0:01:28.2]} 12. O-O {[%clk 0:02:15.7]} 12...
Nf6 {[%clk 0:01:22]} 13. Bb6 {[%clk 0:02:11.7]} 13... Qd7 {[%clk 0:01:20.3]} 14.
Nc7+ {[%clk 0:02:06.6]} 14... Kf7 {[%clk 0:01:18.2]} 15. a4 {[%clk 0:01:59.9]}
15... d5 {[%clk 0:01:06.1]} 16. Rfd1 {[%clk 0:01:53.6]} 16... Bd6 {[%clk
0:00:45]} 17. Nxd5 {[%clk 0:01:46.8]} 17... Nxd5 {[%clk 0:00:44.7]} 18. Rxd5
{[%clk 0:01:46.5]} 18... Qe6 {[%clk 0:00:39.6]} 19. Rad1 {[%clk 0:01:43.2]}
19... Be7 {[%clk 0:00:33.2]} 20. b3 {[%clk 0:01:28.1]} 20... Nd4 {[%clk
0:00:24.8]} 21. Bxd4 {[%clk 0:01:19.9]} 21... exd4 {[%clk 0:00:24]} 22. R5xd4
{[%clk 0:00:47.8]} 22... Rxd4 {[%clk 0:00:23.4]} 23. Rxd4 {[%clk 0:00:47.1]}
23... Qe1+ {[%clk 0:00:22.4]} 24. Bf1 {[%clk 0:00:47.8]} 24... Be6 {[%clk
0:00:22.4]} 25. Rd1 {[%clk 0:00:45.7]} 25... Qe5 {[%clk 0:00:20.2]} 26. Bd3
{[%clk 0:00:45.8]} 26... Rc8 {[%clk 0:00:18]} 27. g3 {[%clk 0:00:43.3]} 27...
Rc7 {[%clk 0:00:18.1]} 28. Kf1 {[%clk 0:00:41.9]} 28... g6 {[%clk 0:00:18.6]}
29. Re1 {[%clk 0:00:42.1]} 29... Qf6 {[%clk 0:00:18.7]} 30. Qf4 {[%clk 0:00:42]}
30... Rd7 {[%clk 0:00:18.5]} 31. Rxe6 {[%clk 0:00:35.1]} 31... Kxe6 {[%clk
0:00:18.2]} 32. Bc4+ {[%clk 0:00:33.8]} 32... Rd5 {[%clk 0:00:18.8]} 33. Qe3+
{[%clk 0:00:27.3]} 33... Qe5 {[%clk 0:00:19.1]} 34. Qb6+ {[%clk 0:00:27.8]}
34... Bd6 {[%clk 0:00:19.1]} 35. Qxb7 {[%clk 0:00:26.1]} 35... Qe4 {[%clk
0:00:13.1]} 36. a5 {[%clk 0:00:21.8]} 36... Qh1+ {[%clk 0:00:10.6]} 37. Ke2
{[%clk 0:00:22.3]} 37... Qe4+ {[%clk 0:00:10.9]} 38. Kf1 {[%clk 0:00:22.8]}
38... Qh1+ {[%clk 0:00:09.3]} 39. Ke2 {[%clk 0:00:23.2]} 39... Qe4+ {[%clk
0:00:09.6]} 40. Kf1 {[%clk 0:00:23.4]} 1/2-1/2

[Event "Late-Titled-Tuesday-Blitz-September-19-2023"]
[Site "Chess.com"]
[Date "2023.09.19"]
[Round "2"]
[White "NotFischer"]
[Black "WindWhistler11"]
[Result "1-0"]
[WhiteElo "2265"]
[BlackElo "2475"]
[TimeControl "180+1"]
[EndTime "14:16:52 PDT"]
[Termination "NotFischer won on time"]

1. e4 {[%clk 0:03:00.9]} 1... e6 {[%clk 0:02:56.3]} 2. d4 {[%clk 0:03:00.4]}
2... d5 {[%clk 0:02:55.8]} 3. e5 {[%clk 0:03:00.4]} 3... c5 {[%clk 0:02:45.2]}
4. c3 {[%clk 0:03:00.4]} 4... Nc6 {[%clk 0:02:44.7]} 5. Nf3 {[%clk 0:03:00.5]}
5... Bd7 {[%clk 0:02:44]} 6. dxc5 {[%clk 0:02:59.9]} 6... Bxc5 {[%clk 0:02:41]}
7. b4 {[%clk 0:02:59.8]} 7... Bb6 {[%clk 0:02:39.2]} 8. b5 {[%clk 0:02:59.2]}
8... Na5 {[%clk 0:02:35.9]} 9. Bd3 {[%clk 0:02:58.4]} 9... Ne7 {[%clk
0:02:30.6]} 10. h4 {[%clk 0:02:53.1]} 10... Rc8 {[%clk 0:02:26.9]} 11. a4 {[%clk
0:02:48.7]} 11... Nc4 {[%clk 0:02:16.4]} 12. Nbd2 {[%clk 0:02:41.4]} 12... Bxf2+
{[%clk 0:02:06.1]} 13. Kxf2 {[%clk 0:02:22.7]} 13... Qb6+ {[%clk 0:02:03.6]} 14.
Kg3 {[%clk 0:02:02.3]} 14... Ne3 {[%clk 0:02:02]} 15. Qe2 {[%clk 0:01:56.3]}
15... Rxc3 {[%clk 0:01:57.6]} 16. Bb2 {[%clk 0:01:45.5]} 16... Rxd3 {[%clk
0:00:41.6]} 17. Qxd3 {[%clk 0:01:44.9]} 17... N3f5+ {[%clk 0:00:38.9]} 18. Kh3
{[%clk 0:01:38.4]} 18... Qf2 {[%clk 0:00:34]} 19. Kh2 {[%clk 0:01:00]} 19... Ng6
{[%clk 0:00:30.1]} 20. Bd4 {[%clk 0:00:45.6]} 20... Qg3+ {[%clk 0:00:26.2]} 21.
Kg1 {[%clk 0:00:44.8]} 21... Nf4 {[%clk 0:00:25.4]} 22. Qf1 {[%clk 0:00:38.7]}
22... Nxd4 {[%clk 0:00:04.2]} 23. Nxd4 {[%clk 0:00:38.6]} 23... Qe3+ {[%clk
0:00:02]} 24. Qf2 {[%clk 0:00:39]} 24... Qxd4 {[%clk 0:00:01.9]} 25. Qxd4 {[%clk
0:00:31.9]} 25... Ne2+ {[%clk 0:00:02.6]} 26. Kf2 {[%clk 0:00:32.8]} 26... Nxd4
{[%clk 0:00:03.4]} 27. Rhc1 {[%clk 0:00:32.2]} 27... O-O {[%clk 0:00:02.8]} 28.
Rc7 {[%clk 0:00:31.8]} 28... Be8 {[%clk 0:00:01.6]} 29. Rxb7 {[%clk 0:00:29.7]}
29... f6 {[%clk 0:00:02.5]} 30. Nf3 {[%clk 0:00:26.7]} 30... fxe5 {[%clk
0:00:02.5]} 31. Rc1 {[%clk 0:00:25.5]} 31... Nf5 {[%clk 0:00:02.1]} 32. Rcc7
{[%clk 0:00:24.5]} 32... e4 {[%clk 0:00:02.2]} 33. g4 {[%clk 0:00:17.6]} 1-0

[Event "Late-Titled-Tuesday-Blitz-September-19-2023"]
[Site "Chess.com"]
[Date "2023.09.19"]
[Round "2"]
[White "MikeSailer"]
[Black "19912131712118"]
[Result "0-1"]
[WhiteElo "2187"]
[BlackElo "2448"]
[TimeControl "180+1"]
[EndTime "14:16:53 PDT"]
[Termination "19912131712118 won on time"]

1. d4 {[%clk 0:03:00]} 1... c5 {[%clk 0:03:00.9]} 2. d5 {[%clk 0:02:59.7]} 2...
d6 {[%clk 0:02:50.4]} 3. Nc3 {[%clk 0:03:00]} 3... Nf6 {[%clk 0:02:51]} 4. e4
{[%clk 0:02:59.4]} 4... e6 {[%clk 0:02:51.5]} 5. Bb5+ {[%clk 0:02:58.3]} 5...
Bd7 {[%clk 0:02:50.6]} 6. a4 {[%clk 0:02:54.5]} 6... exd5 {[%clk 0:02:49.9]} 7.
exd5 {[%clk 0:02:46.1]} 7... a6 {[%clk 0:02:49.2]} 8. Bxd7+ {[%clk 0:02:43.6]}
8... Nbxd7 {[%clk 0:02:50.1]} 9. Nge2 {[%clk 0:02:42.4]} 9... g6 {[%clk
0:02:49.1]} 10. O-O {[%clk 0:02:42.8]} 10... Bg7 {[%clk 0:02:49.7]} 11. Bg5
{[%clk 0:02:43.5]} 11... O-O {[%clk 0:02:50]} 12. Qd2 {[%clk 0:02:42.7]} 12...
Re8 {[%clk 0:02:43.8]} 13. f4 {[%clk 0:02:36.2]} 13... Qa5 {[%clk 0:02:32.9]}
14. f5 {[%clk 0:02:11]} 14... Re5 {[%clk 0:02:16]} 15. fxg6 {[%clk 0:02:04.6]}
15... hxg6 {[%clk 0:02:11.9]} 16. Bf4 {[%clk 0:02:01.3]} 16... Ne4 {[%clk
0:01:57.1]} 17. Nxe4 {[%clk 0:01:33.8]} 17... Qxd2 {[%clk 0:01:56.1]} 18. Nxd2
{[%clk 0:01:26.5]} 18... Rxe2 {[%clk 0:01:47.9]} 19. Nc4 {[%clk 0:01:16.2]}
19... Rxc2 {[%clk 0:01:37.8]} 20. Nxd6 {[%clk 0:01:12.8]} 20... Bxb2 {[%clk
0:01:33.2]} 21. Rae1 {[%clk 0:01:06.7]} 21... Bd4+ {[%clk 0:01:32.5]} 22. Kh1
{[%clk 0:01:06.9]} 22... Nf6 {[%clk 0:01:19.6]} 23. h3 {[%clk 0:00:54.8]} 23...
Nxd5 {[%clk 0:01:11.5]} 24. Nxb7 {[%clk 0:00:44]} 24... Bf2 {[%clk 0:00:22.3]}
25. Re4 {[%clk 0:00:25.1]} 25... f5 {[%clk 0:00:21.5]} 26. Rxf2 {[%clk 0:00:08]}
26... Rxf2 {[%clk 0:00:19.7]} 27. Rc4 {[%clk 0:00:08.6]} 27... Nxf4 {[%clk
0:00:18.5]} 28. Nxc5 {[%clk 0:00:07.7]} 28... Nxg2 {[%clk 0:00:15.7]} 0-1

[Event "Late-Titled-Tuesday-Blitz-September-19-2023"]
[Site "Chess.com"]
[Date "2023.09.19"]
[Round "2"]
[White "Deeper44"]
[Black "AlexPapasimakopoulos"]
[Result "0-1"]
[WhiteElo "2521"]
[BlackElo "2758"]
[TimeControl "180+1"]
[EndTime "14:16:55 PDT"]
[Termination "AlexPapasimakopoulos won by resignation"]

1. d4 {[%clk 0:03:00]} 1... d5 {[%clk 0:02:59.7]} 2. c4 {[%clk 0:02:59.5]} 2...
e6 {[%clk 0:03:00]} 3. Nf3 {[%clk 0:02:59.3]} 3... a6 {[%clk 0:03:00.1]} 4. Qc2
{[%clk 0:02:57.1]} 4... Nf6 {[%clk 0:02:59.5]} 5. g3 {[%clk 0:02:57.2]} 5...
dxc4 {[%clk 0:02:57.8]} 6. Qxc4 {[%clk 0:02:57.1]} 6... b5 {[%clk 0:02:57.9]} 7.
Qc2 {[%clk 0:02:57.7]} 7... Bb7 {[%clk 0:02:58.4]} 8. Bf4 {[%clk 0:02:58.3]}
8... Bd6 {[%clk 0:02:56.5]} 9. Bg2 {[%clk 0:02:57.5]} 9... Nbd7 {[%clk
0:02:53.6]} 10. O-O {[%clk 0:02:54.1]} 10... Rc8 {[%clk 0:02:50.3]} 11. Rd1
{[%clk 0:02:23]} 11... O-O {[%clk 0:02:47.3]} 12. Ne5 {[%clk 0:02:05.4]} 12...
Bxg2 {[%clk 0:02:46.1]} 13. Kxg2 {[%clk 0:02:05.3]} 13... Bxe5 {[%clk
0:02:44.8]} 14. dxe5 {[%clk 0:02:01.2]} 14... Nd5 {[%clk 0:02:44.6]} 15. Nc3
{[%clk 0:01:46.1]} 15... N7b6 {[%clk 0:02:23.6]} 16. Ne4 {[%clk 0:01:34.1]}
16... c5 {[%clk 0:02:10.9]} 17. Ng5 {[%clk 0:01:18.9]} 17... g6 {[%clk
0:02:07.7]} 18. e4 {[%clk 0:01:15.4]} 18... Nxf4+ {[%clk 0:02:06.9]} 19. gxf4
{[%clk 0:01:16.2]} 19... Qe7 {[%clk 0:02:03.1]} 20. Qd3 {[%clk 0:01:09.4]} 20...
h6 {[%clk 0:01:59.6]} 21. Nf3 {[%clk 0:01:04.5]} 21... Rfd8 {[%clk 0:01:58.5]}
22. Qe2 {[%clk 0:00:55.9]} 22... c4 {[%clk 0:01:52.9]} 23. Qe3 {[%clk
0:00:53.7]} 23... Na4 {[%clk 0:01:51.7]} 24. f5 {[%clk 0:00:53]} 24... exf5
{[%clk 0:01:38.4]} 25. Qxh6 {[%clk 0:00:38]} 25... Qf8 {[%clk 0:01:38]} 26. Qf4
{[%clk 0:00:33.2]} 26... fxe4 {[%clk 0:01:36.4]} 27. Ng5 {[%clk 0:00:33.7]}
27... Nxb2 {[%clk 0:01:32]} 28. Rxd8 {[%clk 0:00:31.2]} 28... Rxd8 {[%clk
0:01:32.9]} 29. Nxe4 {[%clk 0:00:31]} 29... Nd3 {[%clk 0:01:28.8]} 30. Nf6+
{[%clk 0:00:29.2]} 30... Kg7 {[%clk 0:01:28.5]} 31. Qg5 {[%clk 0:00:25.3]} 31...
Qh8 {[%clk 0:01:12]} 32. e6 {[%clk 0:00:18.2]} 32... fxe6 {[%clk 0:01:05.7]} 33.
Ng4 {[%clk 0:00:12.1]} 33... Rf8 {[%clk 0:01:00.9]} 34. Rd1 {[%clk 0:00:10.2]}
34... Qh5 {[%clk 0:00:58.6]} 35. Qe7+ {[%clk 0:00:09.6]} 35... Rf7 {[%clk
0:00:58.4]} 36. Qxe6 {[%clk 0:00:10.1]} 36... Qf5 {[%clk 0:00:56]} 37. Qxf5
{[%clk 0:00:07.8]} 37... Rxf5 {[%clk 0:00:55.5]} 38. Kg3 {[%clk 0:00:08.7]}
38... Rg5 {[%clk 0:00:53.9]} 39. h4 {[%clk 0:00:06.1]} 39... Rxg4+ {[%clk
0:00:53.6]} 40. Kxg4 {[%clk 0:00:07]} 40... Nxf2+ {[%clk 0:00:53.6]} 0-1

[Event "Late-Titled-Tuesday-Blitz-September-19-2023"]
[Site "Chess.com"]
[Date "2023.09.19"]
[Round "2"]
[White "Orest_Vovk"]
[Black "Inepton_Fermion"]
[Result "1-0"]
[WhiteElo "2556"]
[BlackElo "2371"]
[TimeControl "180+1"]
[EndTime "14:16:56 PDT"]
[Termination "Orest_Vovk won by checkmate"]

1. e4 {[%clk 0:03:00.9]} 1... c5 {[%clk 0:02:59.5]} 2. Nf3 {[%clk 0:03:00.4]}
2... e6 {[%clk 0:02:59.7]} 3. a4 {[%clk 0:02:59.8]} 3... Nc6 {[%clk 0:02:57.6]}
4. Bb5 {[%clk 0:02:58.5]} 4... Nge7 {[%clk 0:02:52.5]} 5. O-O {[%clk 0:02:57.5]}
5... a6 {[%clk 0:02:51.3]} 6. Bxc6 {[%clk 0:02:55.4]} 6... Nxc6 {[%clk
0:02:52.2]} 7. Nc3 {[%clk 0:02:55.1]} 7... Be7 {[%clk 0:02:47]} 8. d4 {[%clk
0:02:52.7]} 8... cxd4 {[%clk 0:02:46.8]} 9. Nxd4 {[%clk 0:02:53.6]} 9... O-O
{[%clk 0:02:42.7]} 10. Nxc6 {[%clk 0:02:47.8]} 10... bxc6 {[%clk 0:02:25.8]} 11.
e5 {[%clk 0:02:44.8]} 11... Rb8 {[%clk 0:02:22.4]} 12. a5 {[%clk 0:02:44.2]}
12... Bb4 {[%clk 0:02:18.8]} 13. Ne4 {[%clk 0:02:38.2]} 13... h6 {[%clk
0:01:46.6]} 14. Bxh6 {[%clk 0:02:05.2]} 14... Qh4 {[%clk 0:01:31.5]} 15. Bxg7
{[%clk 0:01:44]} 15... Kxg7 {[%clk 0:01:18.3]} 16. Qf3 {[%clk 0:01:41.3]} 16...
Be7 {[%clk 0:01:06]} 17. Ra4 {[%clk 0:01:31.3]} 17... Rh8 {[%clk 0:00:53.3]} 18.
h3 {[%clk 0:01:27.6]} 18... Qh5 {[%clk 0:00:49.9]} 19. Qg3+ {[%clk 0:01:22]}
19... Qg6 {[%clk 0:00:43.7]} 20. Qf3 {[%clk 0:01:14.9]} 20... Rh4 {[%clk
0:00:38.4]} 21. g3 {[%clk 0:01:02.7]} 21... Rxh3 {[%clk 0:00:26.3]} 22. Nf6
{[%clk 0:00:34.8]} 22... Rb4 {[%clk 0:00:25.3]} 23. Rxb4 {[%clk 0:00:32.1]}
23... Bxb4 {[%clk 0:00:26.2]} 24. Rd1 {[%clk 0:00:26.6]} 24... Bc5 {[%clk
0:00:15.1]} 25. Kg2 {[%clk 0:00:25.6]} 25... Rh8 {[%clk 0:00:11.5]} 26. b4
{[%clk 0:00:25]} 26... Bxb4 {[%clk 0:00:10.4]} 27. Rd4 {[%clk 0:00:23.4]} 27...
Bxa5 {[%clk 0:00:03.3]} 28. Rg4 {[%clk 0:00:23]} 28... Rh6 {[%clk 0:00:01.9]}
29. Rxg6+ {[%clk 0:00:21.9]} 29... Rxg6 {[%clk 0:00:02.8]} 30. Qh5 {[%clk
0:00:18]} 30... Bd8 {[%clk 0:00:01.7]} 31. Qh7+ {[%clk 0:00:16.6]} 31... Kf8
{[%clk 0:00:02.3]} 32. Qh8+ {[%clk 0:00:15.6]} 32... Ke7 {[%clk 0:00:01.4]} 33.
Qe8# {[%clk 0:00:14.5]} 1-0

[Event "Late-Titled-Tuesday-Blitz-September-19-2023"]
[Site "Chess.com"]
[Date "2023.09.19"]
[Round "2"]
[White "IamSchrodingersCat"]
[Black "oskariot"]
[Result "0-1"]
[WhiteElo "2510"]
[BlackElo "2727"]
[TimeControl "180+1"]
[EndTime "14:17:01 PDT"]
[Termination "oskariot won by resignation"]

1. e4 {[%clk 0:02:56.9]} 1... c5 {[%clk 0:02:59.3]} 2. Nf3 {[%clk 0:02:55.1]}
2... e6 {[%clk 0:02:51.6]} 3. d3 {[%clk 0:02:54.7]} 3... Nc6 {[%clk 0:02:48.2]}
4. Nbd2 {[%clk 0:02:55.1]} 4... d5 {[%clk 0:02:48.4]} 5. g3 {[%clk 0:02:55.2]}
5... Bd6 {[%clk 0:02:47.8]} 6. Bg2 {[%clk 0:02:55.1]} 6... Nge7 {[%clk 0:02:48]}
7. O-O {[%clk 0:02:55.3]} 7... O-O {[%clk 0:02:48.6]} 8. Re1 {[%clk 0:02:54.7]}
8... Qc7 {[%clk 0:02:49.3]} 9. exd5 {[%clk 0:02:53.8]} 9... exd5 {[%clk
0:02:47.9]} 10. a4 {[%clk 0:02:52.1]} 10... Bg4 {[%clk 0:02:41]} 11. h3 {[%clk
0:02:48.9]} 11... Bh5 {[%clk 0:02:40.9]} 12. Nf1 {[%clk 0:02:48.5]} 12... Rfe8
{[%clk 0:02:36.5]} 13. g4 {[%clk 0:02:30.1]} 13... Bg6 {[%clk 0:02:36.6]} 14.
Nh4 {[%clk 0:02:30.7]} 14... Nd4 {[%clk 0:02:20.9]} 15. c3 {[%clk 0:02:23.9]}
15... Ne6 {[%clk 0:02:21.2]} 16. Ne3 {[%clk 0:02:17.6]} 16... Nf4 {[%clk
0:02:17]} 17. Nxg6 {[%clk 0:02:11.8]} 17... hxg6 {[%clk 0:02:06.6]} 18. c4
{[%clk 0:02:00.5]} 18... d4 {[%clk 0:02:02.8]} 19. Nf1 {[%clk 0:01:55.1]} 19...
Nxg2 {[%clk 0:01:38.2]} 20. Kxg2 {[%clk 0:01:56]} 20... Nc6 {[%clk 0:01:32.2]}
21. Bg5 {[%clk 0:00:26.3]} 21... Nb4 {[%clk 0:00:54.5]} 22. Qd2 {[%clk
0:00:22.5]} 22... f6 {[%clk 0:00:48.5]} 23. Bh4 {[%clk 0:00:22]} 23... Bf4
{[%clk 0:00:49.1]} 24. Rxe8+ {[%clk 0:00:13.6]} 24... Rxe8 {[%clk 0:00:50]} 25.
Qd1 {[%clk 0:00:14.1]} 25... Qc6+ {[%clk 0:00:43.9]} 26. Qf3 {[%clk 0:00:14.1]}
26... Nxd3 {[%clk 0:00:31.5]} 27. Qxc6 {[%clk 0:00:14.7]} 27... bxc6 {[%clk
0:00:32.4]} 28. b3 {[%clk 0:00:14.6]} 28... Re2 {[%clk 0:00:30.7]} 29. Kf3
{[%clk 0:00:13.1]} 29... Rb2 {[%clk 0:00:22]} 30. Rd1 {[%clk 0:00:10.6]} 30...
Rxb3 {[%clk 0:00:18.9]} 31. Ke4 {[%clk 0:00:11.3]} 31... g5 {[%clk 0:00:19.5]}
32. Rxd3 {[%clk 0:00:10.2]} 32... Rxd3 {[%clk 0:00:20]} 33. Kxd3 {[%clk
0:00:11.1]} 33... gxh4 {[%clk 0:00:20.1]} 34. Ke4 {[%clk 0:00:10.9]} 34... g5
{[%clk 0:00:20.7]} 35. Kd3 {[%clk 0:00:09]} 35... Kf7 {[%clk 0:00:21]} 36. Ke4
{[%clk 0:00:09.5]} 36... Ke6 {[%clk 0:00:21.4]} 37. Kd3 {[%clk 0:00:09.9]} 37...
f5 {[%clk 0:00:21.7]} 38. f3 {[%clk 0:00:10.2]} 38... fxg4 {[%clk 0:00:21.5]}
39. fxg4 {[%clk 0:00:11.1]} 39... Ke5 {[%clk 0:00:22.1]} 0-1

[Event "Late-Titled-Tuesday-Blitz-September-19-2023"]
[Site "Chess.com"]
[Date "2023.09.19"]
[Round "2"]
[White "K_A_S_T_O_R"]
[Black "Rital44"]
[Result "1-0"]
[WhiteElo "2932"]
[BlackElo "2569"]
[TimeControl "180+1"]
[EndTime "14:17:02 PDT"]
[Termination "K_A_S_T_O_R won by resignation"]

1. e4 {[%clk 0:03:00.9]} 1... c5 {[%clk 0:02:55.8]} 2. Nf3 {[%clk 0:03:00.8]}
2... Nc6 {[%clk 0:02:55.2]} 3. d4 {[%clk 0:02:59.7]} 3... cxd4 {[%clk
0:02:56.1]} 4. Nxd4 {[%clk 0:03:00]} 4... Nf6 {[%clk 0:02:53.1]} 5. Nc3 {[%clk
0:02:59.5]} 5... e5 {[%clk 0:02:53.6]} 6. Ndb5 {[%clk 0:02:59.7]} 6... d6 {[%clk
0:02:53.7]} 7. Bg5 {[%clk 0:02:59.3]} 7... a6 {[%clk 0:02:52.1]} 8. Na3 {[%clk
0:02:59.6]} 8... Be6 {[%clk 0:02:50.7]} 9. Nc4 {[%clk 0:02:56.8]} 9... Rc8
{[%clk 0:02:49.8]} 10. Bxf6 {[%clk 0:02:56.5]} 10... gxf6 {[%clk 0:02:50]} 11.
Nd5 {[%clk 0:02:45.1]} 11... Bxd5 {[%clk 0:02:27.7]} 12. exd5 {[%clk 0:02:17.5]}
12... Ne7 {[%clk 0:02:26.9]} 13. a4 {[%clk 0:02:05.6]} 13... f5 {[%clk
0:02:22.9]} 14. a5 {[%clk 0:02:03.3]} 14... Rc5 {[%clk 0:02:13.9]} 15. Nb6
{[%clk 0:02:00]} 15... Bg7 {[%clk 0:02:02.1]} 16. c3 {[%clk 0:01:53.5]} 16...
Ng6 {[%clk 0:01:40.6]} 17. Qa4+ {[%clk 0:01:49.4]} 17... Ke7 {[%clk 0:01:32.2]}
18. g3 {[%clk 0:01:46.1]} 18... h5 {[%clk 0:01:15]} 19. h4 {[%clk 0:01:40.5]}
19... e4 {[%clk 0:01:06.7]} 20. Bh3 {[%clk 0:01:33.6]} 20... e3 {[%clk
0:00:56.7]} 21. f4 {[%clk 0:01:23.2]} 21... Re8 {[%clk 0:00:54]} 22. Bxf5 {[%clk
0:01:20.3]} 22... Kf8 {[%clk 0:00:51.6]} 23. Bxg6 {[%clk 0:01:03.3]} 23... fxg6
{[%clk 0:00:48.9]} 24. Qc2 {[%clk 0:01:03.9]} 24... Kf7 {[%clk 0:00:44.7]} 25.
Qd3 {[%clk 0:00:54.2]} 25... Qe7 {[%clk 0:00:44.3]} 26. Ke2 {[%clk 0:00:52]}
26... Qe4 {[%clk 0:00:40.5]} 27. Qxe4 {[%clk 0:00:51.7]} 27... Rxe4 {[%clk
0:00:41.4]} 28. Kf3 {[%clk 0:00:47.2]} 28... Re7 {[%clk 0:00:40.3]} 29. Rhe1
{[%clk 0:00:47.5]} 29... Rb5 {[%clk 0:00:38.4]} 30. Ra2 {[%clk 0:00:43.6]} 30...
Bf6 {[%clk 0:00:32.9]} 31. Rxe3 {[%clk 0:00:42.8]} 31... Rxe3+ {[%clk
0:00:33.8]} 32. Kxe3 {[%clk 0:00:43.2]} 32... Bd8 {[%clk 0:00:34.3]} 33. Kd4
{[%clk 0:00:34.1]} 33... Bxb6+ {[%clk 0:00:33.5]} 34. axb6 {[%clk 0:00:34.2]}
34... Rxb6 {[%clk 0:00:34.4]} 35. b4 {[%clk 0:00:33]} 35... Kf6 {[%clk
0:00:28.9]} 36. Ke4 {[%clk 0:00:29.5]} 36... Rb5 {[%clk 0:00:28.1]} 37. Ra5
{[%clk 0:00:29.5]} 37... Rb6 {[%clk 0:00:25.1]} 38. Ke3 {[%clk 0:00:23.6]} 38...
Kf5 {[%clk 0:00:25.2]} 39. Kf3 {[%clk 0:00:23.9]} 39... Kf6 {[%clk 0:00:25.3]}
40. g4 {[%clk 0:00:24]} 40... Kf7 {[%clk 0:00:24.4]} 41. f5 {[%clk 0:00:21.7]}
41... hxg4+ {[%clk 0:00:19.3]} 42. Kxg4 {[%clk 0:00:21.6]} 42... gxf5+ {[%clk
0:00:20.2]} 43. Kxf5 {[%clk 0:00:21.7]} 43... Kg7 {[%clk 0:00:21.1]} 44. Ke6
{[%clk 0:00:20.1]} 44... Kh6 {[%clk 0:00:21.2]} 45. Kd7 {[%clk 0:00:20.6]} 45...
Kh5 {[%clk 0:00:21.5]} 46. Kc7 {[%clk 0:00:20.9]} 46... Rb5 {[%clk 0:00:20.8]}
47. Rxb5 {[%clk 0:00:21.2]} 47... axb5 {[%clk 0:00:21.7]} 48. Kxd6 {[%clk
0:00:21.4]} 48... Kxh4 {[%clk 0:00:22.6]} 49. Kc7 {[%clk 0:00:21.9]} 49... Kg5
{[%clk 0:00:23.5]} 50. d6 {[%clk 0:00:22.5]} 1-0

[Event "Late-Titled-Tuesday-Blitz-September-19-2023"]
[Site "Chess.com"]
[Date "2023.09.19"]
[Round "2"]
[White "IgorBjelobrk"]
[Black "reevecanada"]
[Result "0-1"]
[WhiteElo "2695"]
[BlackElo "2508"]
[TimeControl "180+1"]
[EndTime "14:17:02 PDT"]
[Termination "reevecanada won on time"]

1. d4 {[%clk 0:02:47.6]} 1... d5 {[%clk 0:02:58.4]} 2. c4 {[%clk 0:02:47.5]}
2... c6 {[%clk 0:02:58]} 3. Nf3 {[%clk 0:02:47.1]} 3... Nf6 {[%clk 0:02:57.4]}
4. Qc2 {[%clk 0:02:47.3]} 4... g6 {[%clk 0:02:56.7]} 5. cxd5 {[%clk 0:02:46.9]}
5... cxd5 {[%clk 0:02:56.5]} 6. Bf4 {[%clk 0:02:47.6]} 6... Nc6 {[%clk
0:02:54.8]} 7. e3 {[%clk 0:02:47.3]} 7... Nh5 {[%clk 0:02:54.4]} 8. Be5 {[%clk
0:02:44.8]} 8... Nxe5 {[%clk 0:02:51.4]} 9. Nxe5 {[%clk 0:02:44.7]} 9... Bg7
{[%clk 0:02:50.9]} 10. Bb5+ {[%clk 0:02:43.5]} 10... Kf8 {[%clk 0:02:50.6]} 11.
Nf3 {[%clk 0:02:32.8]} 11... Bg4 {[%clk 0:02:49.4]} 12. Be2 {[%clk 0:02:32.4]}
12... Rc8 {[%clk 0:02:48.8]} 13. Nc3 {[%clk 0:02:32.6]} 13... Qa5 {[%clk
0:02:36.7]} 14. O-O {[%clk 0:02:29.2]} 14... e6 {[%clk 0:02:34]} 15. Qb3 {[%clk
0:02:26.1]} 15... b6 {[%clk 0:02:32.3]} 16. Rfc1 {[%clk 0:02:24.4]} 16... Bf6
{[%clk 0:02:31.2]} 17. h3 {[%clk 0:02:20.1]} 17... Bxf3 {[%clk 0:02:30.6]} 18.
Bxf3 {[%clk 0:02:21]} 18... Be7 {[%clk 0:02:31]} 19. Bxh5 {[%clk 0:02:16]} 19...
gxh5 {[%clk 0:02:30.5]} 20. Ne2 {[%clk 0:01:54.5]} 20... Kg7 {[%clk 0:02:23]}
21. Nf4 {[%clk 0:01:54.5]} 21... h4 {[%clk 0:02:21]} 22. Qd1 {[%clk 0:01:44.1]}
22... Bg5 {[%clk 0:02:15.8]} 23. Qg4 {[%clk 0:01:35.3]} 23... h6 {[%clk
0:02:11.8]} 24. Nxe6+ {[%clk 0:01:20.8]} 24... fxe6 {[%clk 0:02:06.3]} 25. Qxe6
{[%clk 0:01:21.7]} 25... Qa6 {[%clk 0:01:48.9]} 26. Qd7+ {[%clk 0:01:14.5]}
26... Kg6 {[%clk 0:01:45.7]} 27. f4 {[%clk 0:00:57.3]} 27... Bf6 {[%clk
0:01:39.3]} 28. Qg4+ {[%clk 0:00:41.3]} 28... Kh7 {[%clk 0:01:25.4]} 29. Qf5+
{[%clk 0:00:33.4]} 29... Kg7 {[%clk 0:01:25]} 30. Qd7+ {[%clk 0:00:30.6]} 30...
Kg6 {[%clk 0:01:24.8]} 31. Qxd5 {[%clk 0:00:27.9]} 31... Qd3 {[%clk 0:01:18.4]}
32. Qe6 {[%clk 0:00:23.8]} 32... Qf5 {[%clk 0:00:56.3]} 33. Qb3 {[%clk
0:00:17.8]} 33... Qe4 {[%clk 0:00:54]} 34. Kf2 {[%clk 0:00:12.2]} 34... Rhg8
{[%clk 0:00:52.2]} 35. Rc7 {[%clk 0:00:06.7]} 35... Rxc7 {[%clk 0:00:39.4]} 36.
Qxg8+ {[%clk 0:00:06.6]} 36... Rg7 {[%clk 0:00:39.3]} 37. Qb3 {[%clk 0:00:03.6]}
37... Kh7 {[%clk 0:00:35.5]} 38. Rg1 {[%clk 0:00:03.1]} 38... Rg3 {[%clk
0:00:28.1]} 39. Qc3 {[%clk 0:00:03.1]} 39... Rxe3 {[%clk 0:00:25.1]} 0-1